Cogmind - Beta 12 @@@ ROGUE MODE // 2023.09.28 @ 22:52:10 Player: monistgf Result: Destroyed by G-50 Soldier with Heavy Laser Performance ------------- Evolutions (5) 2500 Regions Visited (9) 1800 Robots Destroyed (183) 915 Value Destroyed (8121) 8121 Prototype IDs (7) 140 Alien Tech Used (0) 0 Bonus (3133) 3133 TOTAL SCORE: 16609 Bonus ------- High Alert Combat Kills 1561 Follower Combat Kills 369 Entered Garrisons 400 Used RIF Installer 1000 Friendly Fire -197 Cogmind --------- Core Integrity 0/1000 Matter 179/300 Energy 9/100 System Corruption 14% Temperature Cool (64) Movement Treading (250) Ox1 Location -5/Factory Parts ------- > --- POWER (2) -------- (None) > --- PROPULSION (4) --- Armored Medium Treads Flexi-carbon Leg > --- UTILITY (8) ------ Coolant Injector High-capacity Storage Unit Enhanced Optical Array Advanced Signal Interpreter > --- WEAPON (3) ------- Phase Cannon > --- INVENTORY (20) --- Advanced Terrain Scanner Relay Coupler [Duelist] (30) Relay Coupler [Sentry] (23) Relay Coupler [Specialist] (24) Relay Coupler [Heavy] (11) Relay Coupler [Behemoth] (11) Relay Coupler [Behemoth] (9) Long-range Tractor Beam Remote Datajack Peak State ------------ > --- POWER ------------ Angular Momentum Engine Micro Fission Core > --- PROPULSION ------- Carbon-fiber Leg Flexi-carbon Leg Flexi-carbon Leg Enhanced Flexi-carbon Leg > --- UTILITY ---------- Advanced Heat Sink High-capacity Storage Unit Enhanced Optical Array Improved Sensor Array Advanced Signal Interpreter Advanced Terrain Scanner Hardened Medium Armor Plating Powered Armor > --- WEAPON ----------- Improved EM Pulse Cannon Heavy Machine Gun Antimatter Cannon > --- INVENTORY -------- Light Angular Momentum Engine Carbon-fiber Leg Advanced Heat Sink Advanced Heat Sink Layered Medium Armor Plating Medium Insulated Plating Relay Coupler [Duelist] Relay Coupler [Sentry] Relay Coupler [Specialist] Relay Coupler [Hunter] Relay Coupler [Heavy] Relay Coupler [Behemoth] Relay Coupler [Behemoth] Improved Corruption Screen Long-range Tractor Beam Tesla Rifle Smartbomb Launcher Remote Datajack Mace [Rating: 86] Favorites ----------- Power Heavy Ion Engine Engine Heavy Ion Engine Power Core Light Nuclear Core Reactor Antimatter Reactor Propulsion Improved Treads Treads Improved Treads Leg Flexi-carbon Leg Wheel Compact Wheel Utility High-capacity Storage Unit Device Advanced Heat Sink Storage High-capacity Storage Unit Processor Advanced Visual Processing Unit Hackware Relay Coupler [Grunt] Protection Improved Light Armor Plating Weapon Heavy Assault Rifle Energy Gun Phase Gun Energy Cannon HERF Cannon Ballistic Gun Heavy Assault Rifle Ballistic Cannon Antimatter Cannon Launcher Grenade Launcher Special Weapon Remote Datajack Impact Weapon Mace Slashing Weapon Chainsword Build | -11 -10 -9 -9 -9 -8 -7 -7 -6 -5 ------- Run | Jun Mat Mat Sto Gar Mat Fac Gar Fac Fac Slots Evolved 10 | . . 2 . . 2 2 . 2 2 Power 1 | . . . . . . . . 1 . Propulsion 2 | . . 1 . . 1 . . . . Utility 6 | . . . . . 1 2 . 1 2 Weapon 1 | . . 1 . . . . . . . Parts Attached 282 | . 12 34 10 11 51 14 44 64 42 Power 26 | . 3 4 . . 5 . 5 5 4 Engine 14 | . 3 4 . . 2 . . 2 3 Core 9 | . . . . . 3 . 3 2 1 Reactor 3 | . . . . . . . 2 1 . Propulsion 51 | . 2 12 . . 15 . 5 11 6 Treads 27 | . . 3 . . 13 . 5 5 1 Leg 23 | . 2 9 . . 1 . . 6 5 Wheel 1 | . . . . . 1 . . . . Hover . | . . . . . . . . . . Flight . | . . . . . . . . . . Utility 89 | . 4 5 5 4 16 7 13 22 13 Device 48 | . 3 3 1 . 12 5 7 10 7 Storage 5 | . 1 . 2 2 . . . . . Processor 6 | . . 1 . . . 1 . 3 1 Hackware 7 | . . . . . . . 3 3 1 Protection 23 | . . 1 2 2 4 1 3 6 4 Artifact . | . . . . . . . . . . Weapon 116 | . 3 13 5 7 15 7 21 26 19 Energy Gun 17 | . . 4 . . 4 1 4 3 1 Energy Cannon 9 | . . . . . . . 1 4 4 Ballistic Gun 39 | . 2 7 4 3 5 3 8 5 2 Ballistic Cannon 6 | . . . . . 2 . 1 1 2 Launcher 12 | . 1 2 1 3 2 . . 1 2 Special Weapon 10 | . . . . . . 1 3 4 2 Impact Weapon 6 | . . . . . 1 1 . . 4 Slashing Weapon 17 | . . . . 1 1 1 4 8 2 Piercing Weapon . | . . . . . . . . . . Special Melee Weapon . | . . . . . . . . . . Unidentified Prototypes 3 | . . . . . . . . 1 2 Parts Lost 60 | . 1 6 . 1 5 . 4 18 25 Power 9 | . 1 1 . . 1 . . 3 3 Propulsion 19 | . . 3 . . 2 . 3 5 6 Utility 19 | . . . . 1 1 . 1 6 10 Weapon 13 | . . 2 . . 1 . . 4 6 Highest Loss Streak 17 | . 1 3 . 1 2 . 1 13 17 To Critical Strikes 1 | . . . . . . . 1 . . Average Slot Usage (%) 94 | . 96 97 100 99 99 92 97 93 85 Engine 5 | . 13 10 11 11 4 . . . 5 Core 2 | . . . . . 4 7 4 3 2 Reactor 1 | . . . . . . . 2 7 . Treads 20 | . . 8 33 33 34 30 28 20 . Leg 7 | . 28 23 . . . . . 1 18 Device 7 | . 11 8 1 . 8 7 6 4 15 Storage 8 | . 14 11 11 11 9 7 7 6 5 Processor 5 | . . 1 . . . 7 7 12 11 Hackware 2 | . . . . . . . 5 7 . Protection 6 | . . . 9 10 8 7 7 5 6 Energy Gun 4 | . . 9 1 . 8 7 4 5 . Energy Cannon 1 | . . . . . . . 1 4 1 Ballistic Gun 12 | . 27 19 27 26 10 13 11 2 3 Ballistic Cannon 1 | . . . . . 5 . . 1 4 Launcher 1 | . . 2 3 5 1 . . . . Slashing Weapon 1 | . . . . 1 . . 3 3 2 Naked Turns . | . . . . . . . . . . Heaviest Build 100 | 12 19 29 30 100 69 73 82 97 99 Greatest Support 106 | 20 20 69 69 69 104 104 106 106 83 Greatest Overweight (x) 16 | . . 2 . 1 1 . 1 15 16 Average Overweight (x) . | . . . . . . . . . 1 Largest Inventory Capacity 25 | 8 10 10 25 25 20 20 20 20 20 Average Capacity 17 | 8 8 10 10 21 20 20 20 20 20 Most Carried 20 | 6 10 10 10 20 20 20 20 20 20 Average Carried 16 | 6 8 9 9 14 19 19 19 18 17 Final Capacity 20 | 8 10 10 10 20 20 20 20 20 20 Final Carried 20 | 6 10 10 10 19 20 20 20 20 9 Class Distribution -------------------- 22% | Mutant 21% | Bothacker-Mutant 15% | Tank 8% | Bothacker-Tank 8% | Bothacker-Assassin 5% | Bothacker-Skirmisher 3% | Bothacker-Gunner 3% | Scavenger-Mutant Dominant Class ---------------- Mutant | -10/Materials Mutant | -9/Materials Tank | -9/Storage Mutant | -9/Garrison Tank | -8/Materials Skirmisher | -7/Factory Bothacker-Mutant | -7/Garrison Bothacker-Mutant | -6/Factory Bothacker-Assassin | -5/Factory Resources | -11 -10 -9 -9 -9 -8 -7 -7 -6 -5 ----------- Run | Jun Mat Mat Sto Gar Mat Fac Gar Fac Fac Matter Collected 5656 | 200 243 654 346 278 1016 185 936 985 813 Remotely 396 | . . . . . . . 287 109 . Salvage Created 7086 | . 265 987 591 511 1390 190 739 1412 1001 Parts 359 | . 22 63 45 30 61 7 43 53 35 Haulers Intercepted 8 | . . 2 . . 5 . . 1 . Recyclers Shooed 4 | . 1 . . . 2 . . 1 . Parts Field Recycled . | . . . . . . . . . . Retrieved Matter . | . . . . . . . . . . Parts Self-Destructed . | . . . . . . . . . . Prevented . | . . . . . . . . . . Kills | -11 -10 -9 -9 -9 -8 -7 -7 -6 -5 ------- Run | Jun Mat Mat Sto Gar Mat Fac Gar Fac Fac Combat Hostiles Destroyed 162 | . 11 22 15 14 25 4 21 24 26 Melee 3 | . . . . . . . . 2 1 Guns 95 | . 8 16 10 6 14 4 18 15 4 Cannons 23 | . . . . . 6 . 3 5 9 AOE 37 | . 3 6 5 8 5 . . 1 9 Classes Destroyed 13 | . 2 5 1 . 1 1 . 3 . Worker 2 | . . . 1 . . . . . 1 Builder 2 | . . . . . . . . 1 1 Hauler 8 | . . 2 . . 5 . . 1 . Recycler 7 | . . 1 1 . 3 . . . 2 Operator 1 | . . 1 . . . . . . . Swarmer 42 | . 6 7 6 7 . . 9 . 7 Saboteur 1 | . . . . . . . . 1 . Grunt 72 | . 5 9 2 5 15 . 5 19 12 Brawler 3 | . . . . . . . . 2 1 Duelist 7 | . . 1 . 2 2 . . 2 . Sentry 28 | . . 5 7 . 6 2 7 . 1 Hunter 2 | . . . . . 2 . . . . Programmer 8 | . . . . . . 2 . 1 5 Best Kill Streak 9 | . 5 7 5 5 4 2 6 3 9 Combat Bots Only 9 | . 5 6 4 5 3 2 6 3 9 Max Kills in Single Turn 3 | . 2 3 2 2 3 1 2 1 3 Gunslinging . | . . . . . . . . . . Exploded 3 | . 2 2 2 2 2 . . 1 3 Melee 1 | . . . . . . . . 1 1 Uniques/NPCs Destroyed . | . . . . . . . . . . Combat | -11 -10 -9 -9 -9 -8 -7 -7 -6 -5 -------- Run | Jun Mat Mat Sto Gar Mat Fac Gar Fac Fac Damage Taken 13873 | . 550 988 513 260 1523 246 1721 3255 4817 Core 2135 | . 116 108 76 14 143 10 167 487 1014 Absorbed by Shields . | . . . . . . . . . . Core Remaining (%) 65 | 100 53 . . 50 74 . 74 42 . Volleys Fired 444 | . 49 51 26 20 74 7 60 76 81 Largest 3 | . 2 3 3 3 3 3 3 3 3 Hottest 204 | . 40 93 102 69 137 136 204 204 174 Shots Fired 983 | . 95 130 67 39 195 22 134 157 144 Gun 721 | . 92 125 64 31 146 22 105 101 35 Cannon 208 | . . . . . 44 . 16 48 100 Launcher 32 | . 3 5 3 8 5 . . 2 6 Special 22 | . . . . . . . 13 6 3 Kinetic 651 | . 92 87 61 31 126 14 80 75 85 Thermal 188 | . . 4 3 . 64 8 33 64 12 Explosive 32 | . 3 5 3 8 5 . . 2 6 Electromagnetic 90 | . . 34 . . . . 8 10 38 Robot Hit Streak 31 | . 10 24 31 6 14 12 14 18 13 Robot Miss Streak 19 | . 6 4 2 3 3 2 19 4 3 Penetration Max 1 | . . . . . . . . 1 . Secondary Targets 12 | . 2 2 1 2 1 1 3 . . Max Gunslinging Chain 1 | . 1 1 1 1 1 1 1 . . Shots Hit Robots 727 | . 58 91 49 31 143 19 100 126 110 Core Hits 432 | . 24 43 25 22 96 20 74 75 53 Critical Kills 4 | . 1 . . . . . 1 1 1 Critical Parts Destroyed 6 | . . . 1 . 1 1 . 1 2 Critical Strikes 23 | . 1 3 1 . 4 1 2 7 4 Burn 6 | . . 1 . . 2 . . 3 . Destroy 7 | . 1 . 1 . 1 1 1 2 . Blast 3 | . . . . . 1 . 1 . 1 Corrupt 2 | . . 2 . . . . . . . Smash 3 | . . . . . . . . . 3 Sever 2 | . . . . . . . . 2 . Melee Attacks 94 | . . . . 12 8 1 18 23 32 Thermal 1 | . . . . . . . . 1 . Impact 25 | . . . . . 1 1 . . 23 Slashing 68 | . . . . 12 7 . 18 22 9 Piercing . | . . . . . . . . . . Sneak Attacks 1 | . . . . . . . . . 1 Combat Hostiles . | . . . . . . . . . . Follow-up Attacks . | . . . . . . . . . . Damage Inflicted 18228 | . 780 1788 1142 1150 3112 441 1777 3325 4713 Guns 8994 | . 624 1290 811 265 1819 441 1448 1746 550 Cannons 3933 | . . . . . 727 . 329 868 2009 Explosions 4015 | . 156 494 331 446 540 . . 455 1593 Melee 1247 | . . . . 439 . . . 253 555 Ramming 39 | . . 4 . . 26 . . 3 6 Kinetic 8691 | . 624 918 765 265 1740 259 1007 1219 1894 Thermal 3597 | . . 153 46 . 806 182 540 1259 611 Explosive 3596 | . 156 392 331 446 540 . . 455 1276 Electromagnetic 1058 | . . 321 . . . . 230 136 371 Impact 555 | . . . . . . . . . 555 Slashing 692 | . . . . 439 . . . 253 . Piercing . | . . . . . . . . . . Highest Corruption 14 | . . . . . . 2 2 9 14 Average Corruption 4 | . . . . . . 1 2 3 6 Corruption Purged . | . . . . . . . . . . Corruption Blocked . | . . . . . . . . . . Effects 71 | . . . . . . 4 20 8 39 Message Errors 12 | . . . . . . 1 3 3 5 Matter Fused 13 | . . . . . . 2 4 1 6 Heat Flow Errors 11 | . . . . . . . 3 1 7 Energy Discharges 12 | . . . . . . . 5 1 6 Parts Fused 1 | . . . . . . . 1 . . Data Loss (minor) 12 | . . . . . . . 3 1 8 Data Loss (major) 2 | . . . . . . . . . 2 Misfires 3 | . . . . . . 1 1 1 . Alerts 2 | . . . . . . . . . 2 Weapon Failures 3 | . . . . . . . . . 3 Overload Shots . | . . . . . . . . . . Overflow Damage 442 | . . 68 2 12 . . . . 360 Projectiles 23 | . . . . . . . . . 23 Explosions 354 | . . 68 2 . . . . . 284 Melee 65 | . . . . 12 . . . . 53 Knockbacks 44 | . . . . . 6 . . 16 22 Impact 5 | . . . . . 1 . . . 4 Kinetic 38 | . . . . . 5 . . 15 18 Secondary 1 | . . . . . . . . 1 . Self-Inflicted Damage 501 | . . 47 26 13 . . . 79 336 Shots 9 | . . 1 1 1 . . . 1 5 Rammed 3 | . . . . . 2 . . 1 . Targets Rammed 7 | . 1 2 . . 2 . . 1 1 Kicked 4 | . 1 2 . . . . . . 1 Crushed . | . . . . . . . . . . Highest Temperature 403 | . 17 236 97 47 403 150 230 342 312 Average Temperature 102 | . 7 81 40 18 139 53 49 129 101 Received Heat Transfer 4373 | . 321 327 180 57 594 42 408 1236 1208 Effects 11 | . . . . . 6 . . 3 2 Shutdowns 2 | . . . . . 1 . . 1 . Energy Bleed 2 | . . . . . . . . 1 1 Interference 5 | . . . . . 5 . . . . Matter Decay 1 | . . . . . . . . . 1 Damage (minor) 1 | . . . . . . . . 1 . Siege Activations . | . . . . . . . . . . Robots Corrupted 2 | . . . . . . . . 1 1 Combat Hostiles 2 | . . . . . . . . 1 1 Parts Fried 6 | . . . . . . . . 1 5 Impact Corruptions 4 | . . . . . . . . . 4 Robots Melted . | . . . . . . . . . . Combat Hostiles . | . . . . . . . . . . Parts Melted 7 | . . . . . 1 2 2 1 1 Heat Transferred 6164 | . . 372 111 . 1697 375 954 2035 620 Parts Sabotaged 4 | . . . . . . . . 4 . Parts Stolen . | . . . . . . . . . . Parts Stripped . | . . . . . . . . . . Power Chain Reactions 3 | . . 1 . . . . . . 2 Missiles Intercepted . | . . . . . . . . . . Alert | -11 -10 -9 -9 -9 -8 -7 -7 -6 -5 ------- Run | Jun Mat Mat Sto Gar Mat Fac Gar Fac Fac Peak Influence 1098 | . 248 354 572 1058 814 474 1098 781 829 Initial 576 | . . 61 117 371 515 352 244 576 311 Average 520 | . 118 248 297 703 694 365 734 603 449 Maximum Alert Level 3 | . 1 1 2 3 3 2 3 3 3 Low Security (%) 7 | 100 69 19 18 . . . . . . Level 1 28 | . 30 80 67 4 . 93 6 . 42 Level 2 43 | . . . 14 34 53 6 37 97 55 Level 3 21 | . . . . 60 46 . 55 2 2 Level 4 . | . . . . . . . . . . Level 5 . | . . . . . . . . . . High Security . | . . . . . . . . . . Max Security . | . . . . . . . . . . Squads Dispatched 29 | . 1 1 3 . 3 1 . 10 10 Investigation 3 | . . . 1 . 1 . . . 1 Extermination 4 | . . . . . . 1 . 1 2 Reinforcement 8 | . 1 1 1 . 1 . . 2 2 Assault 8 | . . . . . 1 . . 5 2 Garrison 6 | . . . 1 . . . . 2 3 Intercept . | . . . . . . . . . . Searches Triggered . | . . . . . . . . . . Construction Impeded 1 | . . . . . . . . 1 . Haulers Reinforced 1 | . . . . . . . . 1 . Active Scanning Responses . | . . . . . . . . . . Cargo Convoy Interrupts . | . . . . . . . . . . Stealth | -11 -10 -9 -9 -9 -8 -7 -7 -6 -5 --------- Run | Jun Mat Mat Sto Gar Mat Fac Gar Fac Fac Distress Signals 7 | . . 2 1 . 1 1 . 1 1 Communications Jammed . | . . . . . . . . . . Distress Signals . | . . . . . . . . . . Times Spotted 248 | . 18 33 24 20 35 5 34 35 44 Peak Tracking Total 8 | . 5 7 5 5 5 3 8 8 6 Tactical Retreats 8 | . 1 . . . . 1 . 1 5 Traps | -11 -10 -9 -9 -9 -8 -7 -7 -6 -5 ------- Run | Jun Mat Mat Sto Gar Mat Fac Gar Fac Fac Traps Triggered 8 | . . . . 3 2 . 2 . 1 Indirectly . | . . . . . . . . . . Trap Hack Attempts . | . . . . . . . . . . Triggered . | . . . . . . . . . . Disarmed . | . . . . . . . . . . Reprogrammed . | . . . . . . . . . . Reused . | . . . . . . . . . . Traps Extracted . | . . . . . . . . . . Installed . | . . . . . . . . . . Triggered 1 | . . . . . . . . . 1 Machines | -11 -10 -9 -9 -9 -8 -7 -7 -6 -5 ---------- Run | Jun Mat Mat Sto Gar Mat Fac Gar Fac Fac Machines Disabled 34 | . . 2 1 2 3 1 5 11 9 Max in Single Turn 4 | . . 1 1 1 1 1 1 4 4 Garrison Access 3 | . . . . . . . . 1 2 Garrison Relay 6 | . . . . 2 . . 4 . . Machines Repaired . | . . . . . . . . . . Machines Sabotaged . | . . . . . . . . . . Overloaded Fab Kills . | . . . . . . . . . . Hacking | -11 -10 -9 -9 -9 -8 -7 -7 -6 -5 --------- Run | Jun Mat Mat Sto Gar Mat Fac Gar Fac Fac Machines Accessed 27 | . 5 6 4 1 1 1 2 2 5 Terminals 22 | . 5 6 3 1 1 . 2 1 3 Fabricators 1 | . . . . . . . . . 1 Repair Stations . | . . . . . . . . . . Recycling Units . | . . . . . . . . . . Scanalyzers . | . . . . . . . . . . Garrison Access 4 | . . . 1 . . 1 . 1 1 Total Hacks 72 | . 17 19 9 2 4 2 3 4 12 Successful 36 | . 6 13 4 . 3 2 1 1 6 Failed 35 | . 10 6 5 2 1 . 2 3 6 Catastrophic 11 | . 2 1 3 1 . . 2 . 2 Database Lockouts 1 | . 1 . . . . . . . . Manual 34 | . 9 7 4 . 3 . . 3 8 Terminals 64 | . 17 19 7 2 4 . 3 3 9 Fabricators 2 | . . . . . . . . . 2 Repair Stations . | . . . . . . . . . . Recycling Units . | . . . . . . . . . . Scanalyzers . | . . . . . . . . . . Garrison Access 6 | . . . 2 . . 2 . 1 1 Terminal Hacks 24 | . 6 10 3 . 2 . 1 . 2 Robot Analysis 4 | . 1 3 . . . . . . . Prototype ID Bank 3 | . 1 2 . . . . . . . Branch Access Points 1 | . 1 . . . . . . . . Alert Level 5 | . 2 1 2 . . . . . . Unreport Threat 3 | . . 1 . . 1 . . . 1 Hauler Manifests 1 | . . 1 . . . . . . . Registered Components 2 | . 1 1 . . . . . . . Zone Layout 4 | . . 1 1 . 1 . . . 1 Patrol Navigation 1 | . . . . . . . 1 . . Fabricator Hacks 1 | . . . . . . . . . 1 Network Status 1 | . . . . . . . . . 1 Repair Station Hacks . | . . . . . . . . . . Recycling Unit Hacks . | . . . . . . . . . . Scanalyzer . | . . . . . . . . . . Garrison Access Hacks 5 | . . . 1 . . 2 . 1 1 Unlock Access 2 | . . . 1 . . 1 . . . Seal Access 2 | . . . . . . . . 1 1 Coupler Status 1 | . . . . . . 1 . . . Unauthorized Hacks 6 | . . 3 . . 1 . . . 2 Terminals 6 | . . 3 . . 1 . . . 2 Track 1 | . . 1 . . . . . . . Assimilate 1 | . . . . . . . . . 1 Botnet 4 | . . 2 . . 1 . . . 1 Fabricators . | . . . . . . . . . . Repair Stations . | . . . . . . . . . . Recycling Units . | . . . . . . . . . . Scanalyzers . | . . . . . . . . . . Garrison Access . | . . . . . . . . . . Data Cores Recovered . | . . . . . . . . . . Used . | . . . . . . . . . . Hacking Detections 22 | . 4 6 3 1 1 1 2 1 3 Full Trace Events 2 | . . . . 1 . . 1 . . Feedback Events . | . . . . . . . . . . Feedback Blocked . | . . . . . . . . . . Robot Schematics Acquired . | . . . . . . . . . . Robots Built . | . . . . . . . . . . Authchips . | . . . . . . . . . . Time . | . . . . . . . . . . Total Robot Build Rating . | . . . . . . . . . . Part Schematics Acquired . | . . . . . . . . . . Parts Built . | . . . . . . . . . . Authchips . | . . . . . . . . . . Time . | . . . . . . . . . . Total Part Build Rating . | . . . . . . . . . . Parts Repaired . | . . . . . . . . . . Time . | . . . . . . . . . . Parts Recycled . | . . . . . . . . . . Recycled Matter . | . . . . . . . . . . Retrieved Matter . | . . . . . . . . . . Retrieved Components . | . . . . . . . . . . Parts Scanalyzed . | . . . . . . . . . . Part Schematics Acquired . | . . . . . . . . . . Parts Damaged . | . . . . . . . . . . Bothacking | -11 -10 -9 -9 -9 -8 -7 -7 -6 -5 ------------ Run | Jun Mat Mat Sto Gar Mat Fac Gar Fac Fac Used RIF Installer 2 | . . . . 1 . . 1 . . Command Fork 1 | . . . . . . . 1 . . Robots Hacked 12 | . . . . . . . 7 3 2 Non-combat 1 | . . . . . . . . 1 . Combat 11 | . . . . . . . 7 2 2 Robot Hacks Applied 13 | . . . . . . . 8 3 2 scatter_targeting 2 | . . . . . . . 2 . . disrupt_area 1 | . . . . . . . . . 1 overload_power 1 | . . . . . . . 1 . . amplify_resonance 2 | . . . . . . . 1 1 . overwrite_iff 4 | . . . . . . . 2 1 1 formatsys_low 1 | . . . . . . . . 1 . formatsys_high 2 | . . . . . . . 2 . . Relay Couplers Released 27 | . . . . 9 . . 17 . 1 Machine Destruction 27 | . . . . 9 . . 17 . 1 Attached 7 | . . . . . . . 3 3 1 Fabnet Peak Effective % . | . . . . . . . . . . Robots Rewired 2 | . . . . . . . 2 . . Allies Hacked . | . . . . . . . . . . Hacks Repelled . | . . . . . . . . . . Allies | -11 -10 -9 -9 -9 -8 -7 -7 -6 -5 -------- Run | Jun Mat Mat Sto Gar Mat Fac Gar Fac Fac Total Allies 21 | . . . 10 . . . 6 3 2 Largest Group 10 | . . . 10 4 . . 2 1 1 Highest-Rated Group 88 | . . . 88 40 . . 70 20 41 Highest-Rated Ally 41 | . . . 16 16 . . 39 20 41 Total Orders 2 | . . . . 2 . . . . . STAY 1 | . . . . 1 . . . . . FOLLOW 1 | . . . . 1 . . . . . Ally Attacks 109 | . . . 39 28 . . 37 3 2 Total Damage 1581 | . . . 313 266 . . 889 73 40 Kills 19 | . . . 5 8 . . 6 . . Allies Corrupted . | . . . . . . . . . . Allies Melted . | . . . . . . . . . . Intel | -11 -10 -9 -9 -9 -8 -7 -7 -6 -5 ------- Run | Jun Mat Mat Sto Gar Mat Fac Gar Fac Fac Robot Analysis Total 4 | . 1 3 . . . . . . . Derelict Logs Recovered . | . . . . . . . . . . Drone Launches . | . . . . . . . . . . Drone Recoveries . | . . . . . . . . . . Exploration | -11 -10 -9 -9 -9 -8 -7 -7 -6 -5 ------------- Run | Jun Mat Mat Sto Gar Mat Fac Gar Fac Fac Turns Passed 11334 | 5 671 987 729 1298 1589 709 1396 1849 2101 Spaces Moved 4918 | 5 403 493 360 567 745 347 659 662 677 Core 16 | . . . . . . . . 1 15 Treads 3421 | . . 134 360 567 745 347 659 585 24 Legs 1481 | 5 403 359 . . . . . 76 638 Wheels . | . . . . . . . . . . Hover . | . . . . . . . . . . Flight . | . . . . . . . . . . Fastest Speed 120 | 120 120 120 160 160 145 162 156 120 120 Average Speed 167 | 120 120 134 160 207 155 162 159 175 207 Slowest Speed 850 | 120 120 260 160 240 240 162 240 800 850 Overloaded Moves . | . . . . . . . . . . Propulsion Burnouts . | . . . . . . . . . . Robots Hopped . | . . . . . . . . . . Cave-ins Triggered . | . . . . . . . . . . Exploration Rate (%) 41 | 2 75 38 50 64 54 15 74 18 27 Regions Visited 9 Branch Regions 1 Pre-discovered Areas . | . . . . . . . . . . Known Exits Taken 4 | . . 1 1 . . 1 . 1 . Unknown Exits Taken 3 | 1 1 . . . 1 . . . . Scrap Searched . | . . . . . . . . . . Spaces Dug 44 | . . 7 6 . 8 1 . 10 12 Terrain Destroyed 335 | . . 25 17 12 52 1 . 71 157 Melee 31 | . . . . . 8 1 . 10 12 Projectile 24 | . . . . . 10 . . 4 10 AOE 280 | . . 25 17 12 34 . . 57 135 Terrain Rammed . | . . . . . . . . . . Walls Destroyed . | . . . . . . . . . . Machines Disabled . | . . . . . . . . . . Actions | -11 -10 -9 -9 -9 -8 -7 -7 -6 -5 --------- Run | Jun Mat Mat Sto Gar Mat Fac Gar Fac Fac Total 7070 | 4 508 715 463 634 1018 475 885 1169 1199 Wait 1040 | . 21 104 54 3 80 99 33 306 340 Move 4909 | 4 402 492 359 566 744 346 658 661 677 Hop . | . . . . . . . . . . Pick Up 123 | . 10 12 5 14 21 2 29 21 9 Fast Attach 42 | . 2 5 . . 7 2 2 16 8 Attach 50 | . 1 6 . 1 6 2 5 14 15 Detach 10 | . 1 . . . . 1 1 4 3 Swap 190 | . 9 23 10 10 38 10 37 34 19 Drop 148 | . 12 20 7 4 38 5 35 13 14 Fire 444 | . 49 51 26 20 74 7 60 76 81 Melee 94 | . . . . 12 8 1 18 23 32 Ram . | . . . . . . . . . . Kick 4 | . 1 2 . . . . . . 1 Crush 3 | . . . . . 2 . . 1 . Escape Stasis 4 | . . . . 4 . . . . . Rewire 9 | . . . 2 . . . 7 . . Trap . | . . . . . . . . . . Miscellaneous . | . . . . . . . . . . Route ------- -11/Junkyard -10/Materials (discovered 2 exits: *Mat / *Min) -9/Materials (discovered 2 exits: *Mat / *Sto) -9/Storage -9/Garrison (discovered 2 exits: *Mat x2) -8/Materials -7/Factory -7/Garrison (discovered 2 exits: *Fac x2) -6/Factory -5/Factory History --------- Turn | Location | Event 1 | -11/Junkyard | Discovered new exit (range 3) 6 | -11/Junkyard | Entered Materials 316 | -10/Materials | Build established: Mutant 343 | -10/Materials | Identified exit to Mines 343 | -10/Materials | Central database locked down 523 | -10/Materials | Discovered new exit (range 11) 677 | -10/Materials | Entered another Materials area 677 | -9/Materials | Evolved 2 slots: Propulsion x1, Weapon x1 1085 | -9/Materials | Lost 3 parts (1p2n) 1120 | -9/Materials | Discovered new exit (range 15) 1514 | -9/Materials | Identified exit to Storage 1580 | -9/Materials | Discovered new exit (range 9) 1664 | -9/Materials | Entered Storage 1689 | -9/Storage | Identified exit to Garrison 2027 | -9/Storage | Build established: Tank 2111 | -9/Storage | Assisted by bots powering up and referring to "LRC-V3" 2340 | -9/Storage | Garrison activated, responded to threat 2393 | -9/Storage | Entered Garrison 2393 | -9/Garrison | Accompanied by 4 allies 2462 | -9/Garrison | Triggered checkpoint 2696 | -9/Garrison | Garrison Relay disabled 2989 | -9/Garrison | Discovered new exit (range 14) 3002 | -9/Garrison | Build established: Mutant 3052 | -9/Garrison | Triggered checkpoint 3292 | -9/Garrison | Triggered checkpoint 3454 | -9/Garrison | Discovered new exit (range 13) 3481 | -9/Garrison | Installed Relay Interface Framework 3522 | -9/Garrison | Triggered checkpoint 3630 | -9/Garrison | Garrison Relay disabled 3691 | -9/Garrison | Entered Materials 3691 | -8/Materials | Evolved 2 slots: Propulsion x1, Utility x1 4091 | -8/Materials | First assault squad dispatched 4269 | -8/Materials | Build established: Tank 5047 | -8/Materials | Discovered new exit (range 4) 5280 | -8/Materials | Entered Factory 5280 | -7/Factory | Evolved 2 slots: Utility x2 5981 | -7/Factory | Identified exit to Garrison 5989 | -7/Factory | Entered Garrison 6022 | -7/Garrison | Build established: Bothacker-Tank 6047 | -7/Garrison | Garrison Relay disabled 6078 | -7/Garrison | Garrison Relay disabled 6549 | -7/Garrison | Discovered new exit (range 11) 6586 | -7/Garrison | Triggered checkpoint 6702 | -7/Garrison | Triggered checkpoint 6786 | -7/Garrison | Build established: Bothacker-Mutant 7082 | -7/Garrison | Triggered checkpoint 7147 | -7/Garrison | Garrison Relay disabled 7230 | -7/Garrison | Expanded RIF knowledge: Command Fork 7263 | -7/Garrison | Discovered new exit (range 10) 7320 | -7/Garrison | Triggered checkpoint 7385 | -7/Garrison | Entered Factory 7385 | -6/Factory | Evolved 2 slots: Power x1, Utility x1 7878 | -6/Factory | Garrison activated, responded to threat 7959 | -6/Factory | Build established: Bothacker-Gunner 8085 | -6/Factory | First assault squad dispatched 8329 | -6/Factory | Lost 4 parts (2n1u1w) 8443 | -6/Factory | Build established: Bothacker-Mutant 9025 | -6/Factory | Core integrity fell below 50% 9075 | -6/Factory | Lost 13 parts (3p2n5u3w) 9212 | -6/Factory | Discovered new exit (range 3) 9224 | -6/Factory | Identified exit to Factory 9234 | -6/Factory | Entered another Factory area 9234 | -5/Factory | Evolved 2 slots: Utility x2 9609 | -5/Factory | Destroyed 9 combat bots 10011 | -5/Factory | Build established: Bothacker-Assassin 10064 | -5/Factory | Found Powered Armor 10524 | -5/Factory | Garrison activated, responded to threat 10734 | -5/Factory | First assault squad dispatched 10804 | -5/Factory | Build established: Bothacker-Skirmisher 10874 | -5/Factory | System corruption reached 10% 10964 | -5/Factory | Lost 17 parts (3p5n7u2w) 11003 | -5/Factory | Core integrity fell below 50% 11138 | -5/Factory | Build established: Bothacker-Mutant 11260 | -5/Factory | Core integrity fell below 20% 11335 | -5/Factory | Destroyed by G-50 Soldier with Heavy Laser Last Messages --------------- 11323_ U-05 Engineer builds a Wall. 11324_ Destroyed Carbon-fiber Leg. 11324_ K-01 Serf collects debris. 11327_ U-05 Engineer lays Concrete. 11328_ System corrupted: Heat flow error (+173). 11328_ K-01 Serf collects debris. 11328_ U-05 Engineer lays Concrete. 11329_ K-01 Serf collects debris. 11329_ U-05 Engineer lays Concrete. 11331_ U-05 Engineer suffers critical hit (Burn). 11331_ U-05 Engineer builds a Wall. 11332_ U-05 Engineer lays Concrete. 11332_ K-01 Serf collects debris. 11332_ U-05 Engineer lays Concrete. 11332_ K-01 Serf collects debris. 11333_ U-05 Engineer lays Concrete. 11333_ Critical hit (Burn: +37). 11333_ U-05 Engineer builds a Wall. 11333_ U-05 Engineer lays Concrete. 11335_ K-01 Serf collects debris. Map ----- +----------------------------------------------------+ | # #?######### #####?# ^^ | | ## #############?????# """ ?? | | # +?????#? """ ? | | # #??????? """ ? | | # """ """ """ #??????? ? | | """ """ """ +?????#? """ | | ##/##### """ """ """ #??????? """ | | % # #??????? """ ######### | | # """ """ """ #?????? #????#??? | | # ### """ """ """ #?????? ""#??? ???? | | % # #?# """ """ """ #?????? ] T"#???????? | | % # #?# +?????? ""#???????? | | ########+### """ """ #??????R +???????? | | ## % # "" """ """ ####### ?????????? | | ?# # " """ """ k #????????????? | | ?# %# " m#????????????? | | ?# + "" #????????????? | | ?# # % #????????????? | | ?# # %% #????????????? | | ?# # % #### #????????????? | | ?# # % %####### #????????????? | | ?########### #????## # # #????????????? | | ???????????# ###### mugk ku/ #????????????? | | ???????????# # ! ## u # ##+#????????????? | | ???????????# # # u # # !#?????? | | ???? + # @ u # + """ =????????? | | ??????????##### # == # # # # "T" ????????? | | ??????????????# # == ### #### #???????????????? | | ??????????????# # == ????# ##?# #???????????????? | | ??????????????#+#####??????##??#+#???????????????? | | ?????????????? ????????????????????????????????? | | ?????????????? ????????????????????????????????? | | ?????????????? ?"????????????????????????????????? | | ?????????????? ?"????????????????????????????????? | | ?????????????? ??????????????????????????????????? | | ?????????????????????????????????????????????????? | | ?????????????????????????????????????????????????? | | ?????????????????????????????????????????????????? | | ?????????????????????????????????????????????????? | | ?????????????????????????????????????????????????? | | ?????????????????????????????????????????????????? | | ?????????????????????????????????????????????????? | | ?????????????????????????????????????????????????? | | ?????????????????????????????????????????????????? | | ?????????????????????????????????????????????????? | | ?????????????????????????????????????????????????? | | ?????????????????????????????????????????????????? | | ?????????????????????????????????????????????????? | | ?????????????????????????????????????????????????? | | ?????????????????????????????????????????????????? | +----------------------------------------------------+ Best States ------------- Heat Dissipation 78 Coolant Potential 65 Energy Generation 41 Energy Capacity 525 Matter Stores 300 Matter Capacity 300 Sight Range 22 Robot Scan Range 15 Terrain Scan Range 20 Terrain Scan Density 10 Corruption Block 15 Armor Coverage 625 Resistance: TH 10 Resistance: EM 20 Propulsion Shielding 33 Evasion (%) 55 Targeting Accuracy 8 Recoil Reduction 4 Relay Coupler Types 2 Relay Coupler Value 53 Item Schematics ----------------- None Robot Schematics ------------------ None Fabricated ------------ Nothing Alien Tech Used ----------------- None Achievements -------------- None Challenges ------------ None Game ------ Seed MiniFieldRefractor Manual? 0 Play Time 01:54:58 Cumulative 65.0 hours Start 2023.09.28 @ 20:56:50 End 2023.09.28 @ 22:52:10 Sessions 1 Manual Loads 0 Difficulty Rogue Special Mode None Game No. 40 Rogue 40 Adventurer 0 Explorer 0 Win Type - Total 0 Types 0/0/0/0/0/0/0/0/0 Lore% 22 Gallery% 44 Achievement% 36 Wizard Run 0 Options --------- ASCII 0 Keyboard 1 Movement Numpad Keybinds 0 Fullscreen 1 Font 24/Smallcaps Map View 76x50 Tactical HUD 1 Map Filters NONE Filters NONE Steam 1 RUN: 69bdf47c-c848-4cbd-aa23-a45b4b291928